bitfinex/quotes_BTCUSD_20260117
["timestamp","ask_amount","ask_price","bid_price","bid_amount"]
[1768673436561,0.01048196,95402.0,95399.0,0.01048229]
[1768673437185,0.01048207,95401.0,95396.0,0.06289529]
[1768673437616,0.0104825,95397.0,95387.0,0.03145048]
[1768673437828,0.01048294,95393.0,95388.0,0.01048349]
[1768673438035,0.01048305,95392.0,95389.0,0.12704]
[1768673439080,0.01048305,95392.0,95389.0,0.13752305]
[1768673439294,0.06289843,95392.0,95389.0,0.13752305]
[1768673439698,0.01048305,95392.0,95389.0,0.13752305]
[1768673442346,0.06289877,95392.0,95389.0,0.13752305]
[1768673442578,0.01048305,95392.0,95389.0,0.14800643]
[1768673442780,0.06289854,95392.0,95389.0,0.13752305]
[1768673443184,0.01048305,95392.0,95389.0,0.13752305]
[1768673449008,0.01048305,95392.0,95389.0,0.14800643]
[1768673450100,0.01048305,95392.0,95389.0,0.13752305]
[1768673454310,0.01048305,95392.0,95389.0,0.14800643]
[1768673454719,0.01048294,95393.0,95389.0,0.2004233]
[1768673455258,0.01048305,95392.0,95389.0,0.13752305]
[1768673456482,0.05241639,95390.0,95389.0,0.13752305]
[1768673457307,0.05241595,95391.0,95389.0,0.13752305]
[1768673458262,0.06289939,95392.0,95389.0,0.13752305]
[1768673459133,0.05241584,95391.0,95389.0,0.13752305]
[1768673460065,0.05241639,95390.0,95389.0,0.13752305]
[1768673460312,0.0524159,95391.0,95389.0,0.13752305]
[1768673460728,0.06289843,95392.0,95389.0,0.13752305]
[1768673461158,0.05241596,95391.0,95389.0,0.13752305]
[1768673461578,0.01048305,95392.0,95389.0,0.13752305]
[1768673465392,0.05241244,95398.0,95394.0,0.01048283]
[1768673466244,0.0104825,95397.0,95394.0,0.01048283]
[1768673468521,0.01048283,95394.0,95390.0,0.01048327]
[1768673468948,0.01048272,95395.0,95392.0,0.01048305]
[1768673469996,0.06289518,95397.0,95392.0,0.06289821]
[1768673470223,0.06289518,95397.0,95392.0,0.06281997]
[1768673472570,0.05241407,95395.0,95391.0,0.01048316]
[1768673473011,0.01048261,95396.0,95391.0,0.06289894]
[1768673473214,0.05241364,95395.0,95391.0,0.01048316]
[1768673473629,0.01048261,95396.0,95391.0,0.06289888]
[1768673474292,0.01048272,95395.0,95391.0,0.06289888]
[1768673474473,0.01048272,95395.0,95391.0,0.06289897]
[1768673475355,0.01048272,95395.0,95392.0,0.01048305]
[1768673475740,0.01048261,95396.0,95392.0,0.01048305]
[1768673476928,0.01048261,95396.0,95392.0,0.06289825]
[1768673477346,0.06289636,95395.0,95390.0,0.01048327]
[1768673477775,0.01048283,95394.0,95391.0,0.01048316]
[1768673478203,0.01048272,95395.0,95391.0,0.01048316]
[1768673478626,0.01048294,95393.0,95389.0,0.18993978]
[1768673479186,0.01048294,95393.0,95390.0,0.01048327]
[1768673479780,0.01048283,95394.0,95390.0,0.01048327]
[1768673480167,0.01048283,95394.0,95391.0,0.01048316]
[1768673480419,0.06289577,95396.0,95392.0,0.06289809]
[1768673480420,0.01048261,95396.0,95392.0,0.06289809]
[1768673480825,0.01048261,95396.0,95393.0,0.01048294]
[1768673481456,0.06289578,95396.0,95393.0,0.01048294]
[1768673481670,0.01048272,95395.0,95389.0,0.18993992]
[1768673481848,0.01048272,95395.0,95389.0,0.13752338]
[1768673482292,0.05241516,95393.0,95389.0,0.13752338]
[1768673482679,0.01048294,95393.0,95389.0,0.18994023]
[1768673483215,0.01048294,95393.0,95390.0,0.01048327]
[1768673484560,0.01048294,95393.0,95390.0,0.06289961]
[1768673487842,0.01048294,95393.0,95390.0,0.01048327]
[1768673488045,0.01048305,95392.0,95389.0,0.12704]
[1768673489541,0.05241639,95390.0,95389.0,0.12704]
[1768673490748,0.01048305,95392.0,95389.0,0.13752338]
[1768673491715,0.06289836,95392.0,95389.0,0.12704]
[1768673492762,0.01048305,95392.0,95389.0,0.12704]
[1768673496208,0.01048305,95392.0,95389.0,0.13752338]
[1768673497355,0.01048305,95392.0,95389.0,0.18994028]
[1768673497955,0.01048294,95393.0,95389.0,0.18994028]
[1768673499683,0.0628977,95393.0,95389.0,0.13752338]
[1768673501960,0.01048294,95393.0,95389.0,0.13752338]
[1768673503533,0.01048305,95392.0,95389.0,0.12704]
[1768673505131,0.01048305,95392.0,95389.0,0.13752338]
[1768673507777,0.06289863,95392.0,95389.0,0.12704]
[1768673507984,0.05241584,95391.0,95389.0,0.12704]
[1768673509920,0.01048305,95392.0,95389.0,0.12704]
[1768673511827,0.01048294,95393.0,95389.0,0.13752338]
[1768673512822,0.01048294,95393.0,95389.0,0.18994024]
[1768673513414,0.01048294,95393.0,95390.0,0.01048327]
[1768673515226,0.01048283,95394.0,95390.0,0.06289959]
[1768673515469,0.01048294,95393.0,95389.0,0.13752338]
[1768673515672,0.01048305,95392.0,95389.0,0.12704]
[1768673515921,0.01048305,95392.0,95389.0,0.13752338]
[1768673516534,0.01048305,95392.0,95389.0,0.12704]
[1768673517578,0.01048305,95392.0,95389.0,0.13752338]
[1768673517803,0.01048305,95392.0,95389.0,0.13747804]
[1768673518743,0.01048305,95392.0,95389.0,0.18989491]
[1768673519156,0.01048305,95392.0,95389.0,0.188513]
[1768673520386,0.01048294,95393.0,95390.0,0.01048327]
[1768673520599,0.01048294,95393.0,95390.0,0.01028673]
[1768673520836,0.01048294,95393.0,95390.0,0.06270312]
[1768673521130,0.01048294,95393.0,95390.0,0.06250671]
[1768673521262,0.01048294,95393.0,95390.0,0.01009032]
[1768673522897,0.06289809,95393.0,95389.0,0.13589957]
[1768673523553,0.01048305,95392.0,95389.0,0.13589957]
[1768673524552,0.05241592,95391.0,95389.0,0.12537085]
[1768673524849,0.06289841,95392.0,95389.0,0.12537085]
[1768673526049,0.05241611,95391.0,95389.0,0.12532551]
[1768673526272,0.05241639,95390.0,95389.0,0.12532551]
[1768673526482,0.05241585,95391.0,95389.0,0.12532551]
[1768673527138,0.01048305,95392.0,95389.0,0.12532551]
[1768673527354,0.06289887,95392.0,95389.0,0.12532551]
[1768673527561,0.06289887,95392.0,95389.0,0.12528018]
[1768673528002,0.01048305,95392.0,95389.0,0.12528018]
[1768673528563,0.01048294,95393.0,95389.0,0.13576356]
[1768673528989,0.01048305,95392.0,95389.0,0.13571823]
[1768673530395,0.01048294,95393.0,95389.0,0.13571823]
[1768673532497,0.01048294,95393.0,95390.0,0.01048327]
[1768673533222,0.01048294,95393.0,95389.0,0.13571823]
[1768673533473,0.01048305,95392.0,95389.0,0.13571823]
[1768673536057,0.01048305,95392.0,95389.0,0.18813516]
[1768673536501,0.01048305,95392.0,95389.0,0.13571823]
[1768673539675,0.01048305,95392.0,95389.0,0.18813514]
[1768673540305,0.01048305,95392.0,95389.0,0.13571823]
[1768673541100,0.01048305,95392.0,95389.0,0.14620128]
[1768673542333,0.06289861,95392.0,95389.0,0.13567257]
[1768673543395,0.01048305,95392.0,95389.0,0.13567257]
[1768673544731,0.0628986,95392.0,95389.0,0.13567257]
[1768673545025,0.05241632,95391.0,95389.0,0.13567257]
[1768673547208,0.0524159,95391.0,95389.0,0.13567257]
[1768673547538,0.0524159,95391.0,95389.0,0.13562724]
[1768673552291,0.01048305,95392.0,95389.0,0.13562724]
[1768673552486,0.05241588,95391.0,95389.0,0.13562724]
[1768673553514,0.01048305,95392.0,95389.0,0.13562724]
[1768673553714,0.01048305,95392.0,95389.0,0.13558191]
[1768673554322,0.06289847,95392.0,95389.0,0.13558191]
[1768673554529,0.06289847,95392.0,95389.0,0.13553658]
[1768673556445,0.0524159,95391.0,95389.0,0.13549125]
[1768673557000,0.06289849,95392.0,95389.0,0.13549125]
[1768673557701,0.0524161,95391.0,95389.0,0.13549125]
[1768673558225,0.0524161,95391.0,95389.0,0.13544593]
[1768673558680,0.06289876,95392.0,95389.0,0.13544593]
[1768673559746,0.05241597,95391.0,95389.0,0.13544593]
[1768673560579,0.06289842,95392.0,95389.0,0.13544593]
[1768673561591,0.05241618,95391.0,95389.0,0.13544593]
[1768673562144,0.05241618,95391.0,95389.0,0.13540061]
[1768673563043,0.01048305,95392.0,95389.0,0.13540061]
[1768673563272,0.06289867,95392.0,95389.0,0.13540061]
[1768673564096,0.01048305,95392.0,95389.0,0.13540061]
[1768673564309,0.05241584,95391.0,95389.0,0.13540061]
[1768673565682,0.06289837,95392.0,95389.0,0.13540061]
[1768673566493,0.01048305,95392.0,95389.0,0.13540061]
[1768673566713,0.05241584,95391.0,95389.0,0.13540061]
[1768673568972,0.05241584,95391.0,95389.0,0.13437486]
[1768673569177,0.01048305,95392.0,95389.0,0.13437486]
[1768673569951,0.01048305,95392.0,95389.0,0.14485824]
[1768673574510,0.06289708,95394.0,95390.0,0.01048327]
[1768673575210,0.01048294,95393.0,95390.0,0.01048327]
[1768673575933,0.01048294,95393.0,95390.0,0.01043795]
[1768673576074,0.06289773,95393.0,95390.0,0.01043795]
[1768673576287,0.01048294,95393.0,95390.0,0.01043795]
[1768673577418,0.01048294,95393.0,95389.0,0.13437486]
[1768673578249,0.01048294,95393.0,95389.0,0.14485824]
[1768673579083,0.06289772,95393.0,95389.0,0.14485824]
[1768673582642,0.01048294,95393.0,95389.0,0.14485824]
[1768673582919,0.06289877,95392.0,95389.0,0.13437486]
[1768673583153,0.01048305,95392.0,95389.0,0.13437486]
[1768673583380,0.01048305,95392.0,95389.0,0.13432954]
[1768673583894,0.05241584,95391.0,95389.0,0.13432954]
[1768673584096,0.06289834,95392.0,95389.0,0.13432954]
[1768673584305,0.05241592,95391.0,95389.0,0.13432954]
[1768673584509,0.01048305,95392.0,95389.0,0.13432954]
[1768673585425,0.06289836,95392.0,95389.0,0.13432954]
[1768673586129,0.05241637,95391.0,95389.0,0.13432954]
[1768673586306,0.01048305,95392.0,95389.0,0.13432954]
[1768673588015,0.06289844,95392.0,95389.0,0.13432954]
[1768673589916,0.01048305,95392.0,95389.0,0.13432954]
[1768673590057,0.06289844,95392.0,95389.0,0.13432954]
[1768673590461,0.06289844,95392.0,95389.0,0.13428422]
[1768673591289,0.01048305,95392.0,95389.0,0.13428422]
[1768673591921,0.05241585,95391.0,95389.0,0.13428422]
[1768673594165,0.01048305,95392.0,95389.0,0.13428422]
[1768673596979,0.01048305,95392.0,95389.0,0.1342389]
[1768673598403,0.06289857,95392.0,95389.0,0.12375585]
[1768673600476,0.01048305,95392.0,95389.0,0.12375585]
[1768673601921,0.05241586,95391.0,95389.0,0.12375585]
[1768673602127,0.01048305,95392.0,95389.0,0.12375585]
[1768673602818,0.05241606,95391.0,95389.0,0.12375585]
[1768673603470,0.0628984,95392.0,95389.0,0.12375585]
[1768673604609,0.0628984,95392.0,95389.0,0.12371053]
[1768673606371,0.01048305,95392.0,95389.0,0.12371053]
[1768673607397,0.01048305,95392.0,95389.0,0.13419391]
[1768673608507,0.01048294,95393.0,95389.0,0.13419391]
[1768673608710,0.01048294,95393.0,95390.0,0.01048327]
[1768673611682,0.01048294,95393.0,95390.0,0.01043795]
[1768673614824,0.01048294,95393.0,95390.0,0.00904719]
[1768673616045,0.01048294,95393.0,95390.0,0.06146355]
[1768673617301,0.01048294,95393.0,95390.0,0.00904719]
[1768673617694,0.01048294,95393.0,95390.0,0.06146353]
[1768673618408,0.01048283,95394.0,95391.0,0.01048316]
[1768673618586,0.0628964,95395.0,95391.0,0.01048316]
[1768673619202,0.01048283,95394.0,95391.0,0.01040488]
[1768673619411,0.01048283,95394.0,95390.0,0.06146353]
[1768673619412,0.01048283,95394.0,95390.0,0.00904719]
[1768673620908,0.01048283,95394.0,95390.0,0.06146345]
[1768673622757,0.01048283,95394.0,95391.0,0.01048316]
[1768673625311,0.01048294,95393.0,95389.0,0.12371053]
[1768673625445,0.01048283,95394.0,95390.0,0.01048327]
[1768673625650,0.01048294,95393.0,95389.0,0.13419391]
[1768673626272,0.01048283,95394.0,95390.0,0.01048327]
[1768673626750,0.01048283,95394.0,95391.0,0.01048316]
[1768673632075,0.06289742,95394.0,95390.0,0.01048327]
[1768673632320,0.01048294,95393.0,95390.0,0.01048327]
[1768673632553,0.06289812,95393.0,95389.0,0.13419391]
[1768673634058,0.2096462,95399.0,95389.0,0.13419391]
[1768673634059,0.01048283,95411.0,95392.0,0.11752608]
[1768673634263,0.01048174,95404.0,95396.0,0.01048261]
[1768673634465,0.05774324,95403.0,95399.0,0.01048229]
[1768673634784,0.04726139,95403.0,95400.0,0.06289293]
[1768673634985,0.04726139,95403.0,95400.0,0.06289292]
[1768673635204,0.04726139,95403.0,95400.0,0.01048218]
[1768673635397,0.04726139,95403.0,95400.0,0.06289303]
[1768673635605,0.04726139,95403.0,95400.0,0.01048218]
[1768673635801,0.05774291,95406.0,95403.0,0.01048185]
[1768673636030,0.04726139,95405.0,95401.0,0.01048207]
[1768673636236,0.04726139,95405.0,95402.0,0.05240979]
[1768673636440,0.04726139,95405.0,95401.0,0.01048207]
[1768673636890,0.04726139,95405.0,95401.0,0.06289236]
[1768673637302,0.04726139,95405.0,95402.0,0.01048196]
[1768673638265,0.04726139,95405.0,95402.0,0.06289174]
[1768673638495,0.05774302,95405.0,95402.0,0.01048196]
[1768673638695,0.01048174,95404.0,95401.0,0.01048207]
[1768673638905,0.01048174,95404.0,95400.0,0.06289301]
[1768673639097,0.01048185,95403.0,95400.0,0.01043686]
[1768673639568,0.05774313,95404.0,95401.0,0.01048207]
[1768673639777,0.04726139,95404.0,95401.0,0.01048207]
[1768673640241,0.04726139,95404.0,95401.0,0.01043675]
[1768673640915,0.05774313,95404.0,95400.0,0.01043686]
[1768673641099,0.04726139,95403.0,95400.0,0.01043686]
[1768673641307,0.04726139,95403.0,95400.0,0.06280218]
[1768673641555,0.04726139,95403.0,95400.0,0.01039154]
[1768673643105,0.04726139,95403.0,95400.0,0.06280241]
[1768673643738,0.04726139,95403.0,95401.0,0.0524103]
[1768673643946,0.01048075,95413.0,95409.0,0.01048119]
[1768673644172,0.01048042,95416.0,95409.0,0.01043588]
[1768673644391,0.04741909,95412.0,95409.0,0.01048119]
[1768673644600,0.04741909,95412.0,95408.0,0.0104813]
[1768673644807,0.04741909,95412.0,95409.0,0.01048119]
[1768673645203,0.04741909,95412.0,95410.0,0.0524054]
[1768673646317,0.05789995,95412.0,95408.0,0.06288736]
[1768673646549,0.05789995,95412.0,95407.0,0.06288817]
[1768673646760,0.05774236,95411.0,95408.0,0.0104813]
[1768673647497,0.04726139,95410.0,95407.0,0.01048141]
[1768673648116,0.04726139,95410.0,95407.0,0.06288841]
[1768673648335,0.05774247,95410.0,95407.0,0.01048141]
[1768673648534,0.05774247,95410.0,95407.0,0.0104361]
[1768673649188,0.05774247,95410.0,95407.0,0.06284314]
[1768673649360,0.04726139,95410.0,95407.0,0.06284314]
[1768673649737,0.04726139,95410.0,95407.0,0.0104361]
[1768673650159,0.05774258,95409.0,95405.0,0.01048163]
[1768673650366,0.04726139,95409.0,95406.0,0.01048152]
[1768673652021,0.05774258,95409.0,95406.0,0.01048152]
[1768673652777,0.04726139,95409.0,95406.0,0.01048152]
[1768673653821,0.04726139,95409.0,95406.0,0.06288906]
[1768673654005,0.04726139,95409.0,95406.0,0.062693]
[1768673654434,0.04726139,95409.0,95406.0,0.01028546]
[1768673655113,0.04726139,95409.0,95406.0,0.06269298]
[1768673655546,0.04726139,95409.0,95406.0,0.01024015]
[1768673655761,0.04726139,95409.0,95406.0,0.06264761]
[1768673656386,0.04726139,95409.0,95406.0,0.01024015]
[1768673657655,0.04726139,95409.0,95406.0,0.06264761]
[1768673658647,0.04726139,95409.0,95406.0,0.01024015]
[1768673659850,0.0104813,95408.0,95405.0,0.01048163]
[1768673660060,0.04726139,95409.0,95406.0,0.01048152]
[1768673660533,0.01048141,95407.0,95404.0,0.01048174]
[1768673660774,0.01048141,95407.0,95402.0,0.01048196]
[1768673661039,0.01048152,95406.0,95402.0,0.06289172]
[1768673661683,0.01048152,95406.0,95403.0,0.01048185]
[1768673662814,0.01048141,95407.0,95404.0,0.01048174]
[1768673663700,0.0104813,95408.0,95404.0,0.06289041]
[1768673664720,0.06288793,95408.0,95404.0,0.01048174]
[1768673665750,0.06288793,95408.0,95400.0,0.01048152]
[1768673665751,0.05886252,95405.0,95400.0,0.01048152]
[1768673665957,0.05886252,95405.0,95402.0,0.05240932]
[1768673666186,0.06288823,95408.0,95401.0,0.06289242]
[1768673666187,0.01048141,95407.0,95401.0,0.06289242]
[1768673666779,0.01048141,95407.0,95402.0,0.01048196]
[1768673666980,0.01048152,95406.0,95403.0,0.01048185]
[1768673669675,0.01048152,95406.0,95403.0,0.01043654]
[1768673671154,0.06288915,95406.0,95402.0,0.01048196]
[1768673672197,0.01048152,95406.0,95402.0,0.01048196]
[1768673673443,0.01048152,95406.0,95403.0,0.01048185]
[1768673677582,0.01048152,95406.0,95403.0,0.01043654]
[1768673678005,0.01048152,95406.0,95402.0,0.01048196]
[1768673678214,0.06288918,95406.0,95402.0,0.01048196]
[1768673678419,0.01048152,95406.0,95402.0,0.01048196]
[1768673679468,0.01048152,95406.0,95402.0,0.06289168]
[1768673679673,0.01048163,95405.0,95402.0,0.01048196]
[1768673679897,0.01048152,95406.0,95403.0,0.01048185]
[1768673680308,0.06288961,95406.0,95402.0,0.01048196]
[1768673680513,0.06288997,95405.0,95401.0,0.01048207]
[1768673681351,0.01048174,95404.0,95401.0,0.01048207]
[1768673681579,0.01048163,95405.0,95402.0,0.01048196]
[1768673681994,0.01048152,95406.0,95402.0,0.01048196]
[1768673682214,0.0628892,95406.0,95402.0,0.01048196]
[1768673682532,0.01048152,95406.0,95402.0,0.01048196]
[1768673684316,0.01048174,95404.0,95401.0,0.01048207]
[1768673684697,0.01048163,95405.0,95402.0,0.01048196]
[1768673684898,0.01048152,95406.0,95402.0,0.06289158]
[1768673685462,0.01048163,95405.0,95402.0,0.01048196]
[1768673686848,0.01048152,95406.0,95402.0,0.01048196]
[1768673687054,0.01048163,95405.0,95400.0,0.01048152]
[1768673687262,0.05240913,95404.0,95400.0,0.01043622]
[1768673687499,0.05240928,95403.0,95400.0,0.01039092]
[1768673687716,0.05241024,95402.0,95400.0,0.01034562]
[1768673687926,0.01048261,95396.0,95393.0,0.01048294]
[1768673688343,0.01048261,95396.0,95392.0,0.01048305]
[1768673688561,0.06289615,95396.0,95392.0,0.01048305]
[1768673688820,0.01048261,95396.0,95392.0,0.01048305]
[1768673689215,0.06289579,95396.0,95392.0,0.01048305]
[1768673689402,0.01048272,95395.0,95391.0,0.07338224]
[1768673689551,0.01048272,95395.0,95392.0,0.01048305]
[1768673689767,0.01048261,95396.0,95393.0,0.01048294]
[1768673691777,0.01048261,95396.0,95393.0,0.01043764]
[1768673692847,0.01048283,95394.0,95391.0,0.01048338]
[1768673693049,0.05241529,95393.0,95391.0,0.01043809]
[1768673693275,0.05241474,95393.0,95391.0,0.01043809]
[1768673693450,0.06289768,95393.0,95389.0,0.01048338]
[1768673693648,0.01048294,95393.0,95389.0,0.01048338]
[1768673694057,0.01048294,95393.0,95390.0,0.01048327]
[1768673697570,0.01048272,95395.0,95391.0,0.01048316]
[1768673697773,0.01048272,95395.0,95392.0,0.01048305]
[1768673699494,0.01048272,95395.0,95392.0,0.0102873]
[1768673701625,0.07622321,95401.0,95398.0,0.0104824]
[1768673701835,0.12704,95403.0,95401.0,0.01043678]
[1768673702047,0.01048141,95407.0,95403.0,0.01048185]
[1768673702252,0.12704,95404.0,95403.0,0.0628911]
[1768673703964,0.01048152,95406.0,95403.0,0.0628911]
[1768673704165,0.12704,95405.0,95403.0,0.0628911]
[1768673706290,0.13752163,95405.0,95402.0,0.01048196]
[1768673706731,0.01048174,95404.0,95400.0,0.01048218]
[1768673706972,0.01048174,95404.0,95400.0,0.06289304]
[1768673707592,0.06289056,95404.0,95400.0,0.01048218]
[1768673707850,0.06289056,95404.0,95400.0,0.01028652]
[1768673708666,0.06289056,95404.0,95400.0,0.01009088]
[1768673709102,0.01048185,95403.0,95400.0,0.00989525]
[1768673709511,0.01048185,95403.0,95399.0,0.01048229]
[1768673709714,0.01048185,95403.0,95400.0,0.01048218]
[1768673710035,0.01048174,95404.0,95400.0,0.06289306]
[1768673711690,0.13752174,95404.0,95400.0,0.06289306]
[1768673714676,0.13752174,95404.0,95401.0,0.01048207]
[1768673715060,0.13752174,95404.0,95401.0,0.06289238]
[1768673715634,0.13752174,95404.0,95401.0,0.0626968]
[1768673716701,0.12704,95404.0,95401.0,0.01028649]
[1768673717730,0.12704,95404.0,95401.0,0.06269668]
[1768673718803,0.05241077,95401.0,95395.0,0.06289626]
[1768673719054,0.05241094,95400.0,95396.0,0.01048261]
[1768673719278,0.01048229,95399.0,95396.0,0.01048261]
[1768673719479,0.01048229,95399.0,95395.0,0.01048272]
[1768673719480,0.06289385,95399.0,95395.0,0.01048272]
[1768673719921,0.01048229,95399.0,95395.0,0.06289635]
[1768673720770,0.01048207,95401.0,95396.0,0.01048261]
[1768673720977,0.01048207,95401.0,95396.0,0.06289557]
[1768673721184,0.01048207,95401.0,95397.0,0.05241242]
[1768673722287,0.01048207,95401.0,95397.0,0.06289492]
[1768673722497,0.01048207,95401.0,95398.0,0.06289432]
[1768673722711,0.01048196,95402.0,95398.0,0.06289432]
[1768673722925,0.01048196,95402.0,95398.0,0.0104824]
[1768673724009,0.01048196,95402.0,95399.0,0.01048229]
[1768673726410,0.01048196,95402.0,95399.0,0.01028671]
[1768673726823,0.01048196,95402.0,95399.0,0.01009115]
[1768673727123,0.18993056,95404.0,95399.0,0.06250248]
[1768673727440,0.06289116,95403.0,95399.0,0.01009115]
[1768673729312,0.01048185,95403.0,95399.0,0.01009115]
[1768673729718,0.01048185,95403.0,95399.0,0.06250253]
[1768673730751,0.01048218,95400.0,95397.0,0.0104825]
[1768673730943,0.05241027,95402.0,95397.0,0.0104825]
[1768673732287,0.01048207,95401.0,95397.0,0.0104825]
[1768673732718,0.01048207,95401.0,95397.0,0.06289486]
[1768673733943,0.01048207,95401.0,95398.0,0.0104824]
[1768673734680,0.01048185,95403.0,95398.0,0.06289432]
[1768673734807,0.01048185,95403.0,95399.0,0.01048229]
[1768673735482,0.06289116,95403.0,95399.0,0.01048229]
[1768673736592,0.01048207,95401.0,95397.0,0.0104825]
[1768673737851,0.01048207,95401.0,95397.0,0.06289504]
[1768673738348,0.01048207,95401.0,95398.0,0.0104824]
[1768673738564,0.01048185,95403.0,95399.0,0.01043699]
[1768673738994,0.01048185,95403.0,95399.0,0.06284834]
[1768673740249,0.01048185,95403.0,95399.0,0.01043699]
[1768673743648,0.01048185,95403.0,95399.0,0.01039169]
[1768673744713,0.01048185,95403.0,95399.0,0.06280289]
[1768673745920,0.01048185,95403.0,95399.0,0.01039169]
[1768673746421,0.01048185,95403.0,95399.0,0.06280282]
[1768673746744,0.01048185,95403.0,95399.0,0.01039169]
[1768673747839,0.01048185,95403.0,95399.0,0.06280306]
[1768673749260,0.01048207,95401.0,95398.0,0.0104824]
[1768673750645,0.06289261,95401.0,95397.0,0.0104825]
[1768673751291,0.01048207,95401.0,95397.0,0.0104825]
[1768673752183,0.01048218,95400.0,95396.0,0.01048261]
[1768673752398,0.01048218,95400.0,95396.0,0.06289567]
[1768673753372,0.01048207,95401.0,95397.0,0.06289481]
[1768673753652,0.06289181,95402.0,95398.0,0.0104824]
[1768673755521,0.01048207,95401.0,95398.0,0.0104824]
[1768673757871,0.06289249,95401.0,95397.0,0.0104825]
[1768673759191,0.06289317,95400.0,95396.0,0.01048261]
[1768673759871,0.01048218,95400.0,95396.0,0.0628957]
[1768673760101,0.01048218,95400.0,95397.0,0.06289499]
[1768673760324,0.01048218,95400.0,95397.0,0.0104825]
[1768673760747,0.13752185,95403.0,95398.0,0.0104824]
[1768673760970,0.01048196,95402.0,95399.0,0.01048229]
[1768673761209,0.01048196,95402.0,95398.0,0.0104824]
[1768673762543,0.06289185,95402.0,95398.0,0.0104824]
[1768673764713,0.01048196,95402.0,95398.0,0.0104824]
[1768673765214,0.12704,95403.0,95400.0,0.01048218]
[1768673765425,0.12704,95406.0,95403.0,0.01048185]
[1768673765842,0.13752152,95406.0,95401.0,0.06289201]
[1768673767135,0.18992924,95406.0,95401.0,0.01048207]
[1768673767346,0.13752152,95406.0,95402.0,0.01048196]
[1768673768411,0.12704,95406.0,95403.0,0.01048185]
[1768673768895,0.13752152,95406.0,95402.0,0.01048196]
[1768673770068,0.12704,95406.0,95403.0,0.01048185]
[1768673770490,0.13752152,95406.0,95402.0,0.01048196]
[1768673770711,0.01048119,95409.0,95405.0,0.01048163]
[1768673770916,0.0104813,95408.0,95405.0,0.07187527]
[1768673771122,0.0104813,95408.0,95405.0,0.0823569]
[1768673771326,0.01048119,95409.0,95405.0,0.0823569]
[1768673772570,0.0104813,95408.0,95405.0,0.0823569]
[1768673773917,0.01048119,95409.0,95405.0,0.13476504]
[1768673774118,0.01048119,95409.0,95405.0,0.0823569]
[1768673774364,0.0104813,95408.0,95405.0,0.07187527]
[1768673775311,0.03312178,95407.0,95403.0,0.08235712]
[1768673775508,0.02264037,95406.0,95403.0,0.08235712]
[1768673775649,0.01048141,95407.0,95403.0,0.08235712]
[1768673775854,0.02263888,95406.0,95403.0,0.08235712]
[1768673776050,0.01048141,95407.0,95403.0,0.08235712]
[1768673776247,0.02263888,95406.0,95403.0,0.08235712]
[1768673776473,0.01048152,95406.0,95403.0,0.08235712]
[1768673777464,0.01048141,95407.0,95403.0,0.08235712]
[1768673777666,0.0226387,95406.0,95403.0,0.08235712]
[1768673777865,0.01048141,95407.0,95403.0,0.08235712]
[1768673778070,0.0226387,95406.0,95403.0,0.08235712]
[1768673778266,0.01048141,95407.0,95403.0,0.08235712]
[1768673778467,0.02263862,95406.0,95403.0,0.08235712]
[1768673778671,0.01048141,95407.0,95403.0,0.13476637]
[1768673778917,0.02263862,95406.0,95403.0,0.13476637]
[1768673779095,0.01048141,95407.0,95403.0,0.08235712]
[1768673779305,0.02263862,95406.0,95404.0,0.01048174]
[1768673779508,0.06288853,95407.0,95403.0,0.08235712]
[1768673779758,0.03312006,95406.0,95403.0,0.08235712]
[1768673779971,0.01048152,95406.0,95403.0,0.08235712]
[1768673780407,0.01048152,95406.0,95403.0,0.01048185]
[1768673781126,0.01048141,95407.0,95404.0,0.01048174]
[1768673781333,0.02263851,95406.0,95403.0,0.01048185]
[1768673781540,0.01048141,95407.0,95403.0,0.01048185]
[1768673781738,0.02263847,95406.0,95403.0,0.01048185]
[1768673781982,0.01048141,95407.0,95403.0,0.06289098]
[1768673782193,0.02263847,95406.0,95403.0,0.06289098]
[1768673782396,0.01048141,95407.0,95403.0,0.06289098]
[1768673782604,0.02263848,95406.0,95403.0,0.06289098]
[1768673782808,0.01048141,95407.0,95403.0,0.06289098]
[1768673782986,0.02263848,95406.0,95403.0,0.06289098]
[1768673783218,0.01048141,95407.0,95403.0,0.06289098]
[1768673783435,0.02263847,95406.0,95403.0,0.06289098]
[1768673783642,0.01048141,95407.0,95403.0,0.06289098]
[1768673783854,0.0226385,95406.0,95403.0,0.06289098]
[1768673784041,0.01048141,95407.0,95403.0,0.06289109]
[1768673784254,0.0226385,95406.0,95403.0,0.06289109]
[1768673784463,0.01048119,95409.0,95404.0,0.01048174]
[1768673784679,0.02263854,95408.0,95407.0,0.01048141]
[1768673785105,0.06304292,95412.0,95408.0,0.0104813]
[1768673785314,0.01048097,95411.0,95407.0,0.0871087]
[1768673785545,0.01048097,95411.0,95408.0,0.0104813]
[1768673786430,0.01048108,95410.0,95406.0,0.01048152]
[1768673786743,0.01048108,95410.0,95407.0,0.01048141]
[1768673787846,0.01039047,95410.0,95407.0,0.01048141]
[1768673788664,0.01039047,95410.0,95407.0,0.06288843]
[1768673788886,0.01039047,95410.0,95407.0,0.01048141]
[1768673791555,0.01039047,95410.0,95407.0,0.06288843]
[1768673791767,0.01039047,95410.0,95407.0,0.01048141]
[1768673791948,0.01048097,95411.0,95407.0,0.06288845]
[1768673793019,0.01048097,95411.0,95408.0,0.0104813]
[1768673794056,0.01063856,95412.0,95408.0,0.06288779]
[1768673794475,0.01048097,95411.0,95407.0,0.01048141]
[1768673794687,0.01048108,95410.0,95407.0,0.01048141]
[1768673796548,0.06288649,95410.0,95406.0,0.01048152]
[1768673796760,0.01048108,95410.0,95406.0,0.01048152]
[1768673796962,0.01048119,95409.0,95406.0,0.01048152]
[1768673797386,0.01048097,95411.0,95407.0,0.01048141]
[1768673797591,0.01048097,95411.0,95407.0,0.06288838]
[1768673798002,0.0628862,95411.0,95407.0,0.01048141]
[1768673798245,0.01048097,95411.0,95407.0,0.01048141]
[1768673799067,0.01048097,95411.0,95407.0,0.06288819]
[1768673799945,0.01063856,95412.0,95409.0,0.01048119]
[1768673800158,0.06304336,95412.0,95408.0,0.0104813]
[1768673801650,0.01048097,95411.0,95408.0,0.0104813]
[1768673802069,0.01063856,95412.0,95409.0,0.01048119]
[1768673802989,0.01063856,95412.0,95408.0,0.06288775]
[1768673803201,0.01063856,95412.0,95409.0,0.01048119]
[1768673804060,0.01063856,95412.0,95408.0,0.0104813]
[1768673804254,0.01063856,95412.0,95409.0,0.01048119]
[1768673804488,0.06304287,95412.0,95409.0,0.01048119]
[1768673804644,0.01063856,95412.0,95409.0,0.01048119]
[1768673805298,0.06304298,95412.0,95408.0,0.0104813]
[1768673805643,0.01063856,95412.0,95408.0,0.0104813]
[1768673805856,0.01063856,95412.0,95408.0,0.06288756]
[1768673807952,0.01063856,95412.0,95409.0,0.01048119]
[1768673810782,0.01048075,95413.0,95410.0,0.01048108]
[1768673810982,0.01048075,95413.0,95409.0,0.01048119]
[1768673811205,0.01048064,95414.0,95410.0,0.01048108]
[1768673811644,0.01048075,95413.0,95410.0,0.01048108]
[1768673812457,0.01048075,95413.0,95409.0,0.01048119]
[1768673812458,0.01048086,95412.0,95409.0,0.01048119]